[Event "Titled Tuesday Blitz May 17 Late 2022"]
[White "Santos Ruiz, Miguel"]
[Black "Sismeiro, Miguel"]
[WhiteFideId "22291482"]
[BlackFideId "1950975"]
[WhiteElo "2486"]
[BlackElo "2031"]
[Result "1/2-1/2"]
[Round "10"]
[TimeControl "180+1"]
[Date "2022.05.17"]
[WhiteClock "0:01:20"]
[BlackClock "0:00:11"]

1. e4 {[%clk 0:03:00]}  c6 {[%clk 0:02:58]} 2. Nc3 {[%clk 0:03:01]}  d5 {[%clk 0:02:57]} 3. Nf3 {[%clk 0:03:01]}  g6 {[%clk 0:02:58]} 4. d4 {[%clk 0:03:01]}  Bg7 {[%clk 0:02:58]} 5. h3 {[%clk 0:03:01]}  dxe4 {[%clk 0:02:58]} 6. Nxe4 {[%clk 0:03:01]}  Nf6 {[%clk 0:02:59]} 7. Nxf6+ {[%clk 0:03:01]}  exf6 {[%clk 0:02:59]} 8. Bc4 {[%clk 0:02:56]}  O-O {[%clk 0:02:58]} 9. O-O {[%clk 0:02:57]}  a5 {[%clk 0:02:58]} 10. a4 {[%clk 0:02:56]}  Na6 {[%clk 0:02:40]} 11. Bf4 {[%clk 0:02:52]}  Nc7 {[%clk 0:02:30]} 12. Re1 {[%clk 0:02:50]}  Nd5 {[%clk 0:02:22]} 13. Bg3 {[%clk 0:02:50]}  Bf5 {[%clk 0:02:14]} 14. c3 {[%clk 0:02:48]}  Qd7 {[%clk 0:01:07]} 15. Bf1 {[%clk 0:02:46]}  Rfe8 {[%clk 0:01:07]} 16. Nd2 {[%clk 0:02:45]}  Bf8 {[%clk 0:01:02]} 17. Nc4 {[%clk 0:02:43]}  Rxe1 {[%clk 0:01:00]} 18. Qxe1 {[%clk 0:02:43]}  Re8 {[%clk 0:01:00]} 19. Qd2 {[%clk 0:02:43]}  b6 {[%clk 0:00:57]} 20. Re1 {[%clk 0:02:41]}  Rxe1 {[%clk 0:00:51]} 21. Qxe1 {[%clk 0:02:41]}  Bc2 {[%clk 0:00:52]} 22. Qa1 {[%clk 0:02:34]}  h5 {[%clk 0:00:48]} 23. Be2 {[%clk 0:02:33]}  Qe7 {[%clk 0:00:43]} 24. Bf3 {[%clk 0:02:32]}  Bh6 {[%clk 0:00:37]} 25. h4 {[%clk 0:02:11]}  Bb3 {[%clk 0:00:33]} 26. Bxd5 {[%clk 0:02:01]}  cxd5 {[%clk 0:00:33]} 27. Nxb6 {[%clk 0:02:01]}  Qd8 {[%clk 0:00:26]} 28. Nxd5 {[%clk 0:01:54]}  Qxd5 {[%clk 0:00:26]} 29. Qa3 {[%clk 0:01:50]}  Bf8 {[%clk 0:00:25]} 30. Qa1 {[%clk 0:01:50]}  Qc4 {[%clk 0:00:25]} 31. Qe1 {[%clk 0:01:48]}  Qxa4 {[%clk 0:00:24]} 32. Qe4 {[%clk 0:01:48]}  Be6 {[%clk 0:00:22]} 33. Qa8 {[%clk 0:01:48]}  Kg7 {[%clk 0:00:18]} 34. Bf4 {[%clk 0:01:45]}  Qd1+ {[%clk 0:00:16]} 35. Kh2 {[%clk 0:01:44]}  Qg4 {[%clk 0:00:16]} 36. Bg3 {[%clk 0:01:44]}  f5 {[%clk 0:00:13]} 37. Qb8 {[%clk 0:01:37]}  f4 {[%clk 0:00:11]} 38. Bxf4 {[%clk 0:01:36]}  Qxh4+ {[%clk 0:00:11]} 39. Kg1 {[%clk 0:01:37]}  Be7 {[%clk 0:00:11]} 40. Bg3 {[%clk 0:01:34]}  Qg4 {[%clk 0:00:11]} 41. Be5+ {[%clk 0:01:31]}  Bf6 {[%clk 0:00:10]} 42. Bd6 {[%clk 0:01:30]}  Qd1+ {[%clk 0:00:09]} 43. Kh2 {[%clk 0:01:30]}  h4 {[%clk 0:00:08]} 44. Be5 {[%clk 0:01:26]}  Bxe5+ {[%clk 0:00:08]} 45. Qxe5+ {[%clk 0:01:26]}  Kh7 {[%clk 0:00:09]} 46. Qf6 {[%clk 0:01:26]}  Qb3 {[%clk 0:00:09]} 47. Qxh4+ {[%clk 0:01:25]}  Kg7 {[%clk 0:00:10]} 48. Qg3 {[%clk 0:01:23]}  a4 {[%clk 0:00:10]} 49. Qe5+ {[%clk 0:01:21]}  Kh7 {[%clk 0:00:10]} 50. Qe2 {[%clk 0:01:22]}  Qc4 {[%clk 0:00:10]} 51. Qe3 {[%clk 0:01:22]}  Qd5 {[%clk 0:00:10]} 52. f3 {[%clk 0:01:21]}  Kg7 {[%clk 0:00:10]} 53. Kg3 {[%clk 0:01:21]}  Kf6 {[%clk 0:00:10]} 54. Qf4+ {[%clk 0:01:21]}  Qf5 {[%clk 0:00:10]} 55. Qc7 {[%clk 0:01:22]}  Qg5+ {[%clk 0:00:10]} 56. Kh2 {[%clk 0:01:21]}  Qh4+ {[%clk 0:00:10]} 57. Kg1 {[%clk 0:01:22]}  Qe1+ {[%clk 0:00:10]} 58. Kh2 {[%clk 0:01:23]}  Qh4+ {[%clk 0:00:11]} 59. Kg1 {[%clk 0:01:23]}  Qe1+ {[%clk 0:00:09]} 60. Kh2 {[%clk 0:01:24]}  Qd2 {[%clk 0:00:10]} 61. Qe5+ {[%clk 0:01:22]}  Ke7 {[%clk 0:00:10]} 62. Qc5+ {[%clk 0:01:22]}  Ke8 {[%clk 0:00:10]} 63. Qc6+ {[%clk 0:01:21]}  Ke7 {[%clk 0:00:11]} 64. Qc5+ {[%clk 0:01:21]}  Ke8 {[%clk 0:00:11]} 65. Qc6+ {[%clk 0:01:21]}  Ke7 {[%clk 0:00:11]} 66. Qc5+ {[%clk 0:01:20]} 1/2-1/2


[Site "https://www.chess.com"]

[Event "Titled Tuesday Blitz May 17 Late 2022"]
[White "Svane, Rasmus"]
[Black "Pichot, Alan"]
[WhiteFideId "4657101"]
[BlackFideId "110973"]
[WhiteElo "2674"]
[BlackElo "2579"]
[Result "1-0"]
[Round "10"]
[TimeControl "180+1"]
[Date "2022.05.17"]
[WhiteClock "0:00:34"]
[BlackClock "0:00:45"]

1. Nf3 {[%clk 0:03:00]}  Nf6 {[%clk 0:03:00]} 2. g3 {[%clk 0:03:01]}  d5 {[%clk 0:02:58]} 3. Bg2 {[%clk 0:03:01]}  e6 {[%clk 0:02:59]} 4. O-O {[%clk 0:03:01]}  Be7 {[%clk 0:03:00]} 5. c4 {[%clk 0:03:02]}  O-O {[%clk 0:02:59]} 6. b3 {[%clk 0:03:00]}  b6 {[%clk 0:02:54]} 7. d4 {[%clk 0:02:59]}  Bb7 {[%clk 0:02:53]} 8. Nc3 {[%clk 0:03:00]}  Nbd7 {[%clk 0:02:49]} 9. Bb2 {[%clk 0:02:59]}  a6 {[%clk 0:02:48]} 10. Rc1 {[%clk 0:02:59]}  Bd6 {[%clk 0:02:38]} 11. e3 {[%clk 0:02:46]}  Qe7 {[%clk 0:02:38]} 12. Ne1 {[%clk 0:02:36]}  Rfd8 {[%clk 0:02:36]} 13. Nd3 {[%clk 0:02:34]}  Rac8 {[%clk 0:02:35]} 14. cxd5 {[%clk 0:02:31]}  exd5 {[%clk 0:02:34]} 15. Qe2 {[%clk 0:02:26]}  c5 {[%clk 0:02:30]} 16. dxc5 {[%clk 0:02:26]}  bxc5 {[%clk 0:02:30]} 17. Rfd1 {[%clk 0:02:25]}  Nb6 {[%clk 0:02:29]} 18. Qf1 {[%clk 0:02:17]}  d4 {[%clk 0:02:21]} 19. exd4 {[%clk 0:02:15]}  Bxg2 {[%clk 0:02:14]} 20. Qxg2 {[%clk 0:01:59]}  cxd4 {[%clk 0:02:14]} 21. Re1 {[%clk 0:01:59]}  Qd7 {[%clk 0:02:03]} 22. Ne4 {[%clk 0:01:58]}  Nxe4 {[%clk 0:01:59]} 23. Rxc8 {[%clk 0:01:54]}  Qxc8 {[%clk 0:01:51]} 24. Qxe4 {[%clk 0:01:54]}  Bf8 {[%clk 0:01:51]} 25. Bxd4 {[%clk 0:01:51]}  Nd5 {[%clk 0:01:42]} 26. Bb2 {[%clk 0:01:35]}  Qc2 {[%clk 0:01:40]} 27. Qe2 {[%clk 0:01:34]}  Qc6 {[%clk 0:01:33]} 28. Qf3 {[%clk 0:01:29]}  Nb4 {[%clk 0:01:29]} 29. Qxc6 {[%clk 0:01:26]}  Nxc6 {[%clk 0:01:30]} 30. Re3 {[%clk 0:01:18]}  f6 {[%clk 0:01:21]} 31. Kf1 {[%clk 0:01:18]}  Nb4 {[%clk 0:01:21]} 32. Nxb4 {[%clk 0:01:05]}  Bxb4 {[%clk 0:01:22]} 33. a3 {[%clk 0:00:57]}  Rd1+ {[%clk 0:01:16]} 34. Kg2 {[%clk 0:00:56]}  Bc5 {[%clk 0:01:17]} 35. Rc3 {[%clk 0:00:56]}  Bxf2 {[%clk 0:01:11]} 36. Rc8+ {[%clk 0:00:37]}  Kf7 {[%clk 0:01:11]} 37. Rc7+ {[%clk 0:00:34]}  Kg6 {[%clk 0:01:08]} 38. Bxf6 {[%clk 0:00:34]}  Rd2 {[%clk 0:00:45]} 39. Bc3 {[%clk 0:00:34]}  Bxg3+ {[%clk 0:00:45]} 40. Kxg3 {[%clk 0:00:34]} 1-0


[Site "https://www.chess.com"]

[Event "Titled Tuesday Blitz May 17 Late 2022"]
[White "Vasquez Schroeder, Rodrigo"]
[Black "Motylev, Alexander"]
[WhiteFideId "3400042"]
[BlackFideId "4121830"]
[WhiteElo "2567"]
[BlackElo "2470"]
[Result "0-1"]
[Round "10"]
[TimeControl "180+1"]
[Date "2022.05.17"]
[WhiteClock "0:00:04"]
[BlackClock "0:00:03"]

1. e4 {[%clk 0:03:00]}  e5 {[%clk 0:02:57]} 2. Nf3 {[%clk 0:03:00]}  Nc6 {[%clk 0:02:58]} 3. Bb5 {[%clk 0:03:01]}  a6 {[%clk 0:02:54]} 4. Ba4 {[%clk 0:03:01]}  g6 {[%clk 0:02:50]} 5. d4 {[%clk 0:02:58]}  b5 {[%clk 0:02:35]} 6. Bb3 {[%clk 0:02:56]}  exd4 {[%clk 0:02:35]} 7. Bg5 {[%clk 0:02:42]}  Be7 {[%clk 0:02:34]} 8. Bf4 {[%clk 0:02:42]}  g5 {[%clk 0:02:22]} 9. Nxg5 {[%clk 0:02:28]}  Bxg5 {[%clk 0:02:13]} 10. Qh5 {[%clk 0:02:27]}  Qf6 {[%clk 0:02:03]} 11. Bxg5 {[%clk 0:02:21]}  Qg6 {[%clk 0:02:02]} 12. Qh4 {[%clk 0:02:18]}  h6 {[%clk 0:01:56]} 13. Bf4 {[%clk 0:02:14]}  Qxg2 {[%clk 0:01:56]} 14. Rf1 {[%clk 0:02:02]}  Nge7 {[%clk 0:01:43]} 15. Qf6 {[%clk 0:01:49]}  Rh7 {[%clk 0:01:40]} 16. Nd2 {[%clk 0:01:40]}  d6 {[%clk 0:01:34]} 17. O-O-O {[%clk 0:01:36]}  Qg6 {[%clk 0:01:33]} 18. Qh4 {[%clk 0:01:34]}  Qg4 {[%clk 0:01:33]} 19. Qg3 {[%clk 0:01:26]}  Ng6 {[%clk 0:01:29]} 20. Bxd6 {[%clk 0:01:20]}  cxd6 {[%clk 0:01:26]} 21. Qxd6 {[%clk 0:01:20]}  Qd7 {[%clk 0:01:17]} 22. Qf6 {[%clk 0:01:11]}  Bb7 {[%clk 0:01:15]} 23. f4 {[%clk 0:01:04]}  Qe7 {[%clk 0:01:14]} 24. Qf5 {[%clk 0:01:04]}  Na5 {[%clk 0:00:57]} 25. Rg1 {[%clk 0:00:47]}  Nxb3+ {[%clk 0:00:20]} 26. Nxb3 {[%clk 0:00:37]}  Bxe4 {[%clk 0:00:19]} 27. Qc5 {[%clk 0:00:37]}  Qxc5 {[%clk 0:00:18]} 28. Nxc5 {[%clk 0:00:36]}  Bf5 {[%clk 0:00:17]} 29. Rxd4 {[%clk 0:00:35]}  Kf8 {[%clk 0:00:17]} 30. Rd5 {[%clk 0:00:32]}  Nxf4 {[%clk 0:00:18]} 31. Re5 {[%clk 0:00:28]}  Re8 {[%clk 0:00:17]} 32. Rge1 {[%clk 0:00:20]}  Rxe5 {[%clk 0:00:16]} 33. Rxe5 {[%clk 0:00:21]}  Be6 {[%clk 0:00:16]} 34. Re4 {[%clk 0:00:20]}  Nd5 {[%clk 0:00:14]} 35. Nxe6+ {[%clk 0:00:20]}  fxe6 {[%clk 0:00:14]} 36. Rxe6 {[%clk 0:00:21]}  a5 {[%clk 0:00:09]} 37. Rd6 {[%clk 0:00:21]}  Nf4 {[%clk 0:00:09]} 38. Rf6+ {[%clk 0:00:19]}  Rf7 {[%clk 0:00:08]} 39. Rxh6 {[%clk 0:00:20]}  Ke7 {[%clk 0:00:08]} 40. Rb6 {[%clk 0:00:18]}  Rf5 {[%clk 0:00:08]} 41. Kd2 {[%clk 0:00:17]}  Kd7 {[%clk 0:00:08]} 42. Ra6 {[%clk 0:00:16]}  a4 {[%clk 0:00:08]} 43. b3 {[%clk 0:00:16]}  Nd5 {[%clk 0:00:06]} 44. bxa4 {[%clk 0:00:15]}  b4 {[%clk 0:00:06]} 45. Ra5 {[%clk 0:00:13]}  Kd6 {[%clk 0:00:05]} 46. h4 {[%clk 0:00:12]}  Rf2+ {[%clk 0:00:05]} 47. Kd3 {[%clk 0:00:11]}  Rf3+ {[%clk 0:00:05]} 48. Kd4 {[%clk 0:00:11]}  Rf4+ {[%clk 0:00:05]} 49. Kd3 {[%clk 0:00:11]}  Rxh4 {[%clk 0:00:05]} 50. Rb5 {[%clk 0:00:11]}  Rh3+ {[%clk 0:00:05]} 51. Kc4 {[%clk 0:00:10]}  Rh4+ {[%clk 0:00:05]} 52. Kb3 {[%clk 0:00:10]}  Kc6 {[%clk 0:00:03]} 53. Ra5 {[%clk 0:00:08]}  Rh3+ {[%clk 0:00:03]} 54. Kb2 {[%clk 0:00:08]}  Ne3 {[%clk 0:00:03]} 55. Kc1 {[%clk 0:00:06]}  Nc4 {[%clk 0:00:03]} 56. Ra6+ {[%clk 0:00:04]}  Kb7 {[%clk 0:00:03]} 57. Rh6 {[%clk 0:00:04]}  Rxh6 {[%clk 0:00:03]} 0-1


[Site "https://www.chess.com"]

[Event "Titled Tuesday Blitz May 17 Late 2022"]
[White "Vovk, Orest"]
[Black "Perez Rodriguez, Jennifer"]
[WhiteFideId "14113490"]
[BlackFideId "3507831"]
[WhiteElo "2203"]
[BlackElo "2170"]
[Result "1-0"]
[Round "10"]
[TimeControl "180+1"]
[Date "2022.05.17"]
[WhiteClock "0:00:16"]
[BlackClock "0:00:03"]

1. h4 {[%clk 0:02:55]}  d5 {[%clk 0:02:57]} 2. h5 {[%clk 0:02:55]}  h6 {[%clk 0:02:56]} 3. e4 {[%clk 0:02:54]}  dxe4 {[%clk 0:02:55]} 4. Nc3 {[%clk 0:02:54]}  Nf6 {[%clk 0:02:55]} 5. Qe2 {[%clk 0:02:54]}  Nc6 {[%clk 0:02:44]} 6. Nxe4 {[%clk 0:02:53]}  Nxe4 {[%clk 0:02:38]} 7. Qxe4 {[%clk 0:02:53]}  Qd4 {[%clk 0:02:37]} 8. Qxd4 {[%clk 0:02:51]}  Nxd4 {[%clk 0:02:37]} 9. Bd3 {[%clk 0:02:51]}  e5 {[%clk 0:02:35]} 10. Ne2 {[%clk 0:02:49]}  Nxe2 {[%clk 0:02:34]} 11. Bxe2 {[%clk 0:02:48]}  Bf5 {[%clk 0:02:33]} 12. d3 {[%clk 0:02:49]}  O-O-O {[%clk 0:02:32]} 13. g4 {[%clk 0:02:46]}  Be6 {[%clk 0:02:32]} 14. Be3 {[%clk 0:02:46]}  Kb8 {[%clk 0:02:31]} 15. a3 {[%clk 0:02:45]}  Be7 {[%clk 0:02:23]} 16. O-O-O {[%clk 0:02:42]}  Bf6 {[%clk 0:02:22]} 17. Rhg1 {[%clk 0:02:34]}  g5 {[%clk 0:02:02]} 18. hxg6 {[%clk 0:02:31]}  fxg6 {[%clk 0:02:02]} 19. g5 {[%clk 0:02:30]}  hxg5 {[%clk 0:02:01]} 20. Bxg5 {[%clk 0:02:30]}  Bxg5+ {[%clk 0:02:01]} 21. Rxg5 {[%clk 0:02:31]}  Bf5 {[%clk 0:02:02]} 22. Bg4 {[%clk 0:02:30]}  Rhf8 {[%clk 0:01:52]} 23. Re1 {[%clk 0:02:22]}  Rde8 {[%clk 0:01:40]} 24. Bxf5 {[%clk 0:01:54]}  gxf5 {[%clk 0:01:38]} 25. f4 {[%clk 0:01:52]}  e4 {[%clk 0:01:28]} 26. dxe4 {[%clk 0:01:39]}  fxe4 {[%clk 0:01:29]} 27. Re5 {[%clk 0:01:37]}  Kc8 {[%clk 0:01:15]} 28. R1xe4 {[%clk 0:01:28]}  Rxe5 {[%clk 0:01:13]} 29. fxe5 {[%clk 0:01:28]}  Kd7 {[%clk 0:01:14]} 30. Rh4 {[%clk 0:01:18]}  Rf7 {[%clk 0:01:04]} 31. Kd2 {[%clk 0:01:14]}  Ke6 {[%clk 0:00:59]} 32. Rh5 {[%clk 0:01:13]}  c5 {[%clk 0:00:27]} 33. Kd3 {[%clk 0:01:08]}  Rf3+ {[%clk 0:00:21]} 34. Ke4 {[%clk 0:01:03]}  Rf2 {[%clk 0:00:21]} 35. Rh6+ {[%clk 0:01:03]}  Kd7 {[%clk 0:00:21]} 36. c4 {[%clk 0:00:46]}  Rxb2 {[%clk 0:00:19]} 37. Kd5 {[%clk 0:00:43]}  Rd2+ {[%clk 0:00:15]} 38. Kxc5 {[%clk 0:00:43]}  Ra2 {[%clk 0:00:15]} 39. Rh7+ {[%clk 0:00:29]}  Ke6 {[%clk 0:00:13]} 40. Kb4 {[%clk 0:00:28]}  Kxe5 {[%clk 0:00:11]} 41. Kb3 {[%clk 0:00:28]}  Rf2 {[%clk 0:00:08]} 42. Rxb7 {[%clk 0:00:25]}  Kd4 {[%clk 0:00:07]} 43. Rxa7 {[%clk 0:00:20]}  Rf3+ {[%clk 0:00:07]} 44. Kb4 {[%clk 0:00:20]}  Rf1 {[%clk 0:00:05]} 45. Rd7+ {[%clk 0:00:20]}  Ke5 {[%clk 0:00:05]} 46. a4 {[%clk 0:00:17]}  Rb1+ {[%clk 0:00:05]} 47. Kc5 {[%clk 0:00:17]}  Ke6 {[%clk 0:00:05]} 48. Ra7 {[%clk 0:00:15]}  Rb2 {[%clk 0:00:03]} 49. a5 {[%clk 0:00:16]} 1-0


[Site "https://www.chess.com"]

[Event "Titled Tuesday Blitz May 17 Late 2022"]
[White "Xiong, Jeffery"]
[Black "Indjic, Aleksandar"]
[WhiteFideId "2047640"]
[BlackFideId "911925"]
[WhiteElo "2727"]
[BlackElo "2616"]
[Result "0-1"]
[Round "10"]
[TimeControl "180+1"]
[Date "2022.05.17"]
[WhiteClock "0:00:03"]
[BlackClock "0:00:02"]

1. e4 {[%clk 0:03:00]}  c5 {[%clk 0:02:59]} 2. Nf3 {[%clk 0:03:01]}  d6 {[%clk 0:03:00]} 3. Nc3 {[%clk 0:03:02]}  Nf6 {[%clk 0:02:59]} 4. d4 {[%clk 0:03:02]}  cxd4 {[%clk 0:03:00]} 5. Qxd4 {[%clk 0:03:03]}  a6 {[%clk 0:02:58]} 6. Nd5 {[%clk 0:03:03]}  e5 {[%clk 0:02:34]} 7. Nxf6+ {[%clk 0:02:44]}  Qxf6 {[%clk 0:02:34]} 8. Qa4+ {[%clk 0:02:33]}  Nc6 {[%clk 0:02:32]} 9. Bc4 {[%clk 0:02:23]}  Qg6 {[%clk 0:02:31]} 10. O-O {[%clk 0:02:23]}  Be7 {[%clk 0:02:30]} 11. Bd5 {[%clk 0:02:20]}  Bd7 {[%clk 0:02:30]} 12. Qb3 {[%clk 0:02:19]}  Rb8 {[%clk 0:02:29]} 13. a4 {[%clk 0:02:16]}  O-O {[%clk 0:02:28]} 14. Bd2 {[%clk 0:02:15]}  Kh8 {[%clk 0:02:28]} 15. Ne1 {[%clk 0:01:52]}  f5 {[%clk 0:02:22]} 16. Qg3 {[%clk 0:01:52]}  Qh5 {[%clk 0:02:11]} 17. exf5 {[%clk 0:01:51]}  Nd4 {[%clk 0:02:11]} 18. Kh1 {[%clk 0:01:45]}  Bxf5 {[%clk 0:02:08]} 19. c3 {[%clk 0:01:21]}  Ne2 {[%clk 0:02:08]} 20. Qe3 {[%clk 0:01:22]}  Nf4 {[%clk 0:02:08]} 21. Bf3 {[%clk 0:01:21]}  Qg6 {[%clk 0:02:06]} 22. Qb6 {[%clk 0:01:18]}  e4 {[%clk 0:01:21]} 23. Bxf4 {[%clk 0:01:09]}  exf3 {[%clk 0:01:21]} 24. Nxf3 {[%clk 0:00:59]}  Be4 {[%clk 0:01:21]} 25. Qe3 {[%clk 0:00:59]}  Rbe8 {[%clk 0:01:13]} 26. Rae1 {[%clk 0:00:39]}  Bd8 {[%clk 0:01:13]} 27. Qd2 {[%clk 0:00:40]}  Qg4 {[%clk 0:01:03]} 28. Rxe4 {[%clk 0:00:39]}  Rxe4 {[%clk 0:01:01]} 29. Bxd6 {[%clk 0:00:39]}  Rfe8 {[%clk 0:00:59]} 30. Bg3 {[%clk 0:00:39]}  Bf6 {[%clk 0:00:57]} 31. Qd5 {[%clk 0:00:37]}  R4e7 {[%clk 0:00:47]} 32. a5 {[%clk 0:00:36]}  Rd7 {[%clk 0:00:45]} 33. Qb3 {[%clk 0:00:36]}  h5 {[%clk 0:00:43]} 34. h3 {[%clk 0:00:34]}  Qf5 {[%clk 0:00:43]} 35. Rd1 {[%clk 0:00:32]}  Qb5 {[%clk 0:00:25]} 36. Qc2 {[%clk 0:00:32]}  Rxd1+ {[%clk 0:00:17]} 37. Qxd1 {[%clk 0:00:33]}  Qxa5 {[%clk 0:00:18]} 38. Qd7 {[%clk 0:00:31]}  Qb5 {[%clk 0:00:18]} 39. Qf7 {[%clk 0:00:32]}  Re7 {[%clk 0:00:17]} 40. Qg6 {[%clk 0:00:31]}  Qe8 {[%clk 0:00:01]} 41. Qc2 {[%clk 0:00:31]}  Re4 {[%clk 0:00:01]} 42. Qb3 {[%clk 0:00:30]}  Re2 {[%clk 0:00:01]} 43. Qxb7 {[%clk 0:00:30]}  Qe4 {[%clk 0:00:01]} 44. Qxa6 {[%clk 0:00:18]}  h4 {[%clk 0:00:02]} 45. Bc7 {[%clk 0:00:12]}  Rxf2 {[%clk 0:00:02]} 46. Bb6 {[%clk 0:00:02]}  Rxb2 {[%clk 0:00:01]} 47. Qc8+ {[%clk 0:00:01]}  Kh7 {[%clk 0:00:01]} 48. Bd4 {[%clk 0:00:02]}  Rb1+ {[%clk 0:00:01]} 49. Kh2 {[%clk 0:00:03]}  Qf4+ {[%clk 0:00:02]} 0-1


[Site "https://www.chess.com"]

[Event "Titled Tuesday Blitz May 17 Late 2022"]
[White "Yurovskykh, Oleksandr"]
[Black "Barria Zuniga, Daniel"]
[WhiteFideId "14134020"]
[BlackFideId "3400816"]
[WhiteElo "2292"]
[BlackElo "2414"]
[Result "1-0"]
[Round "10"]
[TimeControl "180+1"]
[Date "2022.05.17"]
[WhiteClock "0:00:08"]
[BlackClock "0:00:04"]

1. d4 {[%clk 0:03:00]}  d5 {[%clk 0:02:56]} 2. Bf4 {[%clk 0:02:59]}  c6 {[%clk 0:02:56]} 3. e3 {[%clk 0:03:00]}  Qb6 {[%clk 0:02:57]} 4. b3 {[%clk 0:03:00]}  Nf6 {[%clk 0:02:57]} 5. Nf3 {[%clk 0:03:00]}  Bg4 {[%clk 0:02:57]} 6. Be2 {[%clk 0:03:00]}  e6 {[%clk 0:02:57]} 7. O-O {[%clk 0:02:59]}  c5 {[%clk 0:02:54]} 8. c4 {[%clk 0:02:42]}  Nc6 {[%clk 0:02:54]} 9. Nc3 {[%clk 0:02:34]}  Rd8 {[%clk 0:02:46]} 10. Nb5 {[%clk 0:02:04]}  Rd7 {[%clk 0:02:29]} 11. Ne5 {[%clk 0:01:47]}  Nxe5 {[%clk 0:02:23]} 12. Bxe5 {[%clk 0:01:26]}  Bxe2 {[%clk 0:02:15]} 13. Qxe2 {[%clk 0:01:27]}  a6 {[%clk 0:01:55]} 14. Nc3 {[%clk 0:01:26]}  dxc4 {[%clk 0:01:55]} 15. bxc4 {[%clk 0:01:26]}  Be7 {[%clk 0:01:37]} 16. Bxf6 {[%clk 0:01:21]}  gxf6 {[%clk 0:01:34]} 17. Rab1 {[%clk 0:01:10]}  Qa5 {[%clk 0:01:34]} 18. Ne4 {[%clk 0:01:08]}  cxd4 {[%clk 0:01:30]} 19. exd4 {[%clk 0:01:09]}  Rg8 {[%clk 0:01:30]} 20. Rfd1 {[%clk 0:01:08]}  f5 {[%clk 0:01:26]} 21. Ng3 {[%clk 0:01:02]}  Kf8 {[%clk 0:00:34]} 22. d5 {[%clk 0:01:00]}  Rg6 {[%clk 0:00:34]} 23. Qh5 {[%clk 0:00:53]}  exd5 {[%clk 0:00:24]} 24. Qxf5 {[%clk 0:00:50]}  Rgd6 {[%clk 0:00:16]} 25. cxd5 {[%clk 0:00:34]}  Rxd5 {[%clk 0:00:15]} 26. Rxd5 {[%clk 0:00:26]}  Qxd5 {[%clk 0:00:16]} 27. Qxh7 {[%clk 0:00:21]}  Bf6 {[%clk 0:00:15]} 28. Qf5 {[%clk 0:00:13]}  b5 {[%clk 0:00:14]} 29. h3 {[%clk 0:00:12]}  Qxf5 {[%clk 0:00:14]} 30. Nxf5 {[%clk 0:00:13]}  Rd2 {[%clk 0:00:13]} 31. a4 {[%clk 0:00:11]}  Rd5 {[%clk 0:00:10]} 32. Ne3 {[%clk 0:00:11]}  Rc5 {[%clk 0:00:10]} 33. axb5 {[%clk 0:00:11]}  Rxb5 {[%clk 0:00:10]} 34. Rxb5 {[%clk 0:00:09]}  axb5 {[%clk 0:00:10]} 35. Nd5 {[%clk 0:00:07]}  Be7 {[%clk 0:00:08]} 36. Kf1 {[%clk 0:00:05]}  b4 {[%clk 0:00:08]} 37. Ke2 {[%clk 0:00:06]}  b3 {[%clk 0:00:08]} 38. Kd3 {[%clk 0:00:06]}  b2 {[%clk 0:00:06]} 39. Kc2 {[%clk 0:00:05]}  Bc5 {[%clk 0:00:07]} 40. f3 {[%clk 0:00:05]}  Bd4 {[%clk 0:00:07]} 41. Nf4 {[%clk 0:00:05]}  Kg7 {[%clk 0:00:06]} 42. Nd3 {[%clk 0:00:05]}  Kf6 {[%clk 0:00:06]} 43. Nxb2 {[%clk 0:00:06]}  Kg5 {[%clk 0:00:05]} 44. Nd3 {[%clk 0:00:03]}  Kh4 {[%clk 0:00:05]} 45. g4 {[%clk 0:00:02]}  Kxh3 {[%clk 0:00:05]} 46. Kd1 {[%clk 0:00:02]}  Kg3 {[%clk 0:00:05]} 47. Ke2 {[%clk 0:00:03]}  Kh4 {[%clk 0:00:05]} 48. Nf4 {[%clk 0:00:03]}  Kg5 {[%clk 0:00:05]} 49. Nh3+ {[%clk 0:00:04]}  Kf6 {[%clk 0:00:05]} 50. f4 {[%clk 0:00:04]}  Ba7 {[%clk 0:00:05]} 51. Kf3 {[%clk 0:00:04]}  Kg6 {[%clk 0:00:05]} 52. Ke4 {[%clk 0:00:05]}  f5+ {[%clk 0:00:04]} 53. gxf5+ {[%clk 0:00:05]}  Kf6 {[%clk 0:00:05]} 54. Ng5 {[%clk 0:00:05]}  Bb8 {[%clk 0:00:05]} 55. Nf3 {[%clk 0:00:06]}  Kf7 {[%clk 0:00:05]} 56. Nh2 {[%clk 0:00:06]}  Bc7 {[%clk 0:00:05]} 57. Ng4 {[%clk 0:00:07]}  Bb8 {[%clk 0:00:05]} 58. Ne5+ {[%clk 0:00:08]}  Ke7 {[%clk 0:00:04]} 59. Nc6+ {[%clk 0:00:08]} 1-0


[Site "https://www.chess.com"]

[Event "Titled Tuesday Blitz May 17 Late 2022"]
[White "Adewumi, Tanitoluwa"]
[Black "Solon, Nathan"]
[WhiteFideId "30966396"]
[BlackFideId "2017229"]
[WhiteElo "2501"]
[BlackElo "2564"]
[Result "0-1"]
[Round "11"]
[TimeControl "180+1"]
[Date "2022.05.17"]
[WhiteClock "0:00:03"]
[BlackClock "0:00:25"]

1. e4 {[%clk 0:03:00]}  c6 {[%clk 0:02:59]} 2. d4 {[%clk 0:03:00]}  d5 {[%clk 0:03:00]} 3. e5 {[%clk 0:03:01]}  c5 {[%clk 0:03:00]} 4. dxc5 {[%clk 0:02:58]}  e6 {[%clk 0:03:00]} 5. Be3 {[%clk 0:02:56]}  Nd7 {[%clk 0:03:00]} 6. Nf3 {[%clk 0:02:55]}  Bxc5 {[%clk 0:02:59]} 7. Bxc5 {[%clk 0:02:54]}  Nxc5 {[%clk 0:03:00]} 8. Nc3 {[%clk 0:02:51]}  Ne7 {[%clk 0:02:56]} 9. Qd4 {[%clk 0:02:46]}  Qb6 {[%clk 0:02:53]} 10. Bd3 {[%clk 0:02:17]}  Nc6 {[%clk 0:02:46]} 11. Qe3 {[%clk 0:01:37]}  d4 {[%clk 0:02:29]} 12. Nxd4 {[%clk 0:01:15]}  Nxd3+ {[%clk 0:02:28]} 13. Qxd3 {[%clk 0:01:13]}  Qxd4 {[%clk 0:02:27]} 14. Qxd4 {[%clk 0:01:14]}  Nxd4 {[%clk 0:02:28]} 15. O-O-O {[%clk 0:01:14]}  Nc6 {[%clk 0:02:24]} 16. Nb5 {[%clk 0:01:12]}  O-O {[%clk 0:02:24]} 17. f4 {[%clk 0:01:13]}  a6 {[%clk 0:02:02]} 18. Nd6 {[%clk 0:01:12]}  b5 {[%clk 0:01:57]} 19. Rd3 {[%clk 0:01:11]}  Nb4 {[%clk 0:01:49]} 20. Rd4 {[%clk 0:01:00]}  Nd5 {[%clk 0:01:47]} 21. Rhd1 {[%clk 0:00:52]}  Bd7 {[%clk 0:01:44]} 22. c3 {[%clk 0:00:46]}  Bc6 {[%clk 0:01:39]} 23. g3 {[%clk 0:00:41]}  Ra7 {[%clk 0:01:35]} 24. a3 {[%clk 0:00:23]}  Rd7 {[%clk 0:01:34]} 25. Ne4 {[%clk 0:00:19]}  Rc7 {[%clk 0:01:23]} 26. Kb1 {[%clk 0:00:17]}  Bb7 {[%clk 0:01:17]} 27. Nd6 {[%clk 0:00:16]}  Rd8 {[%clk 0:01:15]} 28. f5 {[%clk 0:00:15]}  Rcd7 {[%clk 0:00:55]} 29. fxe6 {[%clk 0:00:13]}  fxe6 {[%clk 0:00:56]} 30. R1d3 {[%clk 0:00:08]}  Rxd6 {[%clk 0:00:53]} 31. exd6 {[%clk 0:00:08]}  Rxd6 {[%clk 0:00:53]} 32. Rd1 {[%clk 0:00:07]}  Kf7 {[%clk 0:00:50]} 33. Rf1+ {[%clk 0:00:05]}  Ke7 {[%clk 0:00:50]} 34. Re1 {[%clk 0:00:04]}  Nf6 {[%clk 0:00:45]} 35. Kc2 {[%clk 0:00:05]}  Rxd4 {[%clk 0:00:44]} 36. cxd4 {[%clk 0:00:06]}  Kd6 {[%clk 0:00:45]} 37. Kc3 {[%clk 0:00:06]}  Bd5 {[%clk 0:00:40]} 38. Kd3 {[%clk 0:00:06]}  Bc4+ {[%clk 0:00:40]} 39. Kc3 {[%clk 0:00:06]}  Kd5 {[%clk 0:00:39]} 40. Re5+ {[%clk 0:00:06]}  Kd6 {[%clk 0:00:39]} 41. Re1 {[%clk 0:00:07]}  Bd5 {[%clk 0:00:38]} 42. Kd3 {[%clk 0:00:07]}  g5 {[%clk 0:00:37]} 43. h3 {[%clk 0:00:07]}  h5 {[%clk 0:00:36]} 44. h4 {[%clk 0:00:07]}  g4 {[%clk 0:00:35]} 45. Rf1 {[%clk 0:00:06]}  Ne4 {[%clk 0:00:34]} 46. Rg1 {[%clk 0:00:05]}  e5 {[%clk 0:00:32]} 47. Ke3 {[%clk 0:00:05]}  Ke6 {[%clk 0:00:30]} 48. Rg2 {[%clk 0:00:03]}  Kf5 {[%clk 0:00:26]} 49. Rf2+ {[%clk 0:00:03]}  Nxf2 {[%clk 0:00:25]} 0-1


[Site "https://www.chess.com"]